fUSD/lending_fUSD_20250222
["ID","MTS","AMOUNT","RATE_DAILY","PERIOD"]
[354079582,1740226243479,-500.0,0.00012542,2]
[354079585,1740226243488,-500.0,0.00012542,2]
[354079586,1740226243498,-500.0,0.00012542,2]
[354079588,1740226243507,-500.0,0.00012542,2]
[354079590,1740226243516,-500.0,0.00012542,2]
[354079593,1740226243526,-500.0,0.00012542,2]
[354079595,1740226243535,-500.0,0.00012542,2]
[354079597,1740226243544,-500.0,0.00012542,2]
[354079599,1740226243553,-500.0,0.00012542,2]
[354079601,1740226243563,-323.74665536,0.00012542,2]
[354079603,1740226243572,-500.0,0.00012542,2]
[354079605,1740226243581,-262.38192951,0.00012542,2]
[354079607,1740226243590,-500.0,0.00012542,2]
[354079609,1740226243599,-500.0,0.00012542,2]
[354079611,1740226243608,-500.0,0.00012542,2]
[354079613,1740226243617,-500.0,0.00012542,2]
[354079615,1740226243626,-500.0,0.00012542,2]
[354079617,1740226243635,-500.0,0.00012542,2]
[354079619,1740226243644,-500.0,0.00012542,2]
[354079621,1740226243654,-500.0,0.00012542,2]
[354079623,1740226243663,-500.0,0.00012542,2]
[354079625,1740226243673,-500.0,0.00012542,2]
[354079627,1740226243682,-505.93989388,0.00012542,2]
[354079628,1740226243691,-500.0,0.00012542,2]
[354079631,1740226243702,-500.0,0.00012542,2]
[354079632,1740226243711,-500.0,0.00012542,2]
[354079635,1740226243721,-500.0,0.00012542,2]
[354079636,1740226243730,-500.0,0.00012542,2]
[354079639,1740226243739,-500.0,0.00012542,2]
[354079641,1740226243749,-500.0,0.00012542,2]
[354079643,1740226243758,-500.0,0.00012542,2]
[354079644,1740226243767,-500.0,0.00012542,2]
[354079647,1740226243776,-500.0,0.00012542,2]
[354079649,1740226243785,-500.0,0.00012542,2]
[354079650,1740226243795,-563.84094949,0.00012542,2]
[354079653,1740226243804,-500.0,0.00012542,2]
[354079654,1740226243813,-500.0,0.00012542,2]
[354079656,1740226243822,-500.0,0.00012542,2]
[354079658,1740226243831,-500.0,0.00012542,2]
[354079660,1740226243840,-500.0,0.00012542,2]
[354079662,1740226243849,-500.0,0.00012542,2]
[354079664,1740226243858,-500.0,0.00012542,2]
[354079666,1740226243867,-500.0,0.00012542,2]
[354079668,1740226243877,-500.0,0.00012542,2]
[354079670,1740226243886,-500.0,0.00012542,2]
[354079672,1740226243895,-500.0,0.00012542,2]
[354079674,1740226243905,-500.0,0.00012542,2]
[354079676,1740226243914,-420.56607282,0.00012542,2]
[354079678,1740226243923,-500.0,0.00012542,2]
[354079680,1740226243932,-199.40556158,0.00012542,2]
[354079682,1740226243941,-567.88975464,0.00012542,2]
[354079684,1740226243951,-304.57197039,0.00012542,2]
[354079686,1740226243959,-190.99310301,0.00012542,2]
[354079688,1740226243968,-245.02763589,0.00012542,2]
[354079690,1740226243978,-242.64526062,0.00012542,2]
[354079692,1740226243987,-500.0,0.00012542,2]
[354079694,1740226243996,-500.0,0.00012542,2]
[354079696,1740226244006,-500.0,0.00012542,2]
[354079698,1740226244015,-500.0,0.00012542,2]
[354079700,1740226244023,-500.0,0.00012542,2]
[354079702,1740226244033,-330.80703194,0.00012542,2]
[354079704,1740226244042,-500.0,0.00012542,2]
[354079706,1740226244051,-502.01718534,0.00012542,2]
[354079708,1740226244061,-500.0,0.00012542,2]
[354079710,1740226244070,-507.83332338,0.00012542,2]
[354079712,1740226244079,-500.0,0.00012542,2]
[354079731,1740226244240,-514.46753003,0.00012542,2]
[354079733,1740226244251,-517.81204605,0.00012542,2]
[354079735,1740226244261,-500.0,0.00012542,2]
[354079737,1740226244270,-500.0,0.00012542,2]
[354079739,1740226244280,-500.0,0.00012542,2]
[354079741,1740226244289,-500.0,0.00012542,2]
[354079743,1740226244298,-500.0,0.00012542,2]
[354079745,1740226244307,-500.0,0.00012542,2]
[354079747,1740226244316,-500.0,0.00012542,2]
[354079749,1740226244325,-500.0,0.00012542,2]
[354079751,1740226244335,-500.0,0.00012542,2]
[354079753,1740226244347,-500.0,0.00012542,2]
[354079755,1740226244356,-500.0,0.00012542,2]
[354079757,1740226244365,-505.19416841,0.00012542,2]
[354079759,1740226244374,-500.0,0.00012542,2]
[354079761,1740226244384,-500.0,0.00012542,2]
[354079763,1740226244393,-546.99,0.00012542,2]
[354079765,1740226244402,-500.0,0.00012542,2]
[354079767,1740226244411,-500.0,0.00012542,2]
[354079769,1740226244422,-500.0,0.00012542,2]
[354079771,1740226244432,-500.0,0.00012542,2]
[354079773,1740226244441,-500.0,0.00012542,2]
[354079775,1740226244451,-500.0,0.00012542,2]
[354079777,1740226244460,-500.0,0.00012542,2]
[354079779,1740226244469,-500.0,0.00012542,2]
[354079781,1740226244478,-500.0,0.00012542,2]
[354079783,1740226244487,-500.0,0.00012542,2]
[354079785,1740226244496,-500.0,0.00012542,2]
[354079787,1740226244506,-209.94442415,0.00012543,2]
[354079789,1740226244515,-449.61,0.00012582,2]
[354079791,1740226244524,-1000.0,0.000126,2]
[354079793,1740226244534,-500.0,0.00012624,2]
[354079795,1740226244543,-513.90332906,0.00012624,2]
[354079797,1740226244552,-500.0,0.00012624,2]
[354079799,1740226244562,-554.46199383,0.00012624,2]
[354079801,1740226244572,-357.06334275,0.00012624,2]
[354079803,1740226244581,-500.0,0.00012624,2]
[354079805,1740226244590,-500.0,0.00012624,2]
[354079807,1740226244601,-500.0,0.00012624,2]
[354079810,1740226244611,-505.18957208,0.00012624,2]
[354079812,1740226244620,-500.0,0.00012624,2]
[354079814,1740226244629,-629.83336873,0.00012624,2]
[354079816,1740226244639,-500.0,0.00012624,2]
[354079818,1740226244648,-500.0,0.00012624,2]
[354079820,1740226244657,-500.0,0.00012624,2]
[354079822,1740226244667,-500.0,0.00012624,2]
[354079824,1740226244676,-500.0,0.00012624,2]
[354079825,1740226244686,-500.0,0.00012624,2]
[354079827,1740226244697,-460.84374356,0.00012624,2]
[354079830,1740226244707,-500.0,0.00012624,2]
[354079832,1740226244717,-500.0,0.00012624,2]
[354079834,1740226244726,-504.22202369,0.00012624,2]
[354079836,1740226244735,-637.44447965,0.00012624,2]
[354079838,1740226244745,-587.51172818,0.00012624,2]
[354079840,1740226244754,-500.0,0.00012624,2]
[354079842,1740226244763,-507.0530933,0.00012624,2]
[354079844,1740226244773,-507.27402058,0.00012624,2]
[354079846,1740226244782,-500.0,0.00012624,2]
[354079848,1740226244791,-500.0,0.00012624,2]
[354079850,1740226244801,-500.0,0.00012624,2]
[354079852,1740226244810,-500.0,0.00012624,2]
[354079854,1740226244819,-500.0,0.00012624,2]
[354079856,1740226244829,-500.0,0.00012624,2]
[354079858,1740226244838,-518.58775376,0.00012624,2]
[354079860,1740226244847,-500.0,0.00012624,2]
[354079862,1740226244856,-437.23210723,0.00012624,2]
[354079864,1740226244865,-525.71296828,0.00012624,2]
[354079866,1740226244875,-500.0,0.00012624,2]
[354079868,1740226244885,-280.48256429,0.00012624,2]
[354079869,1740226244894,-500.0,0.00012624,2]
[354079870,1740226244904,-500.0,0.00012624,2]
[354079871,1740226244913,-500.0,0.00012624,2]
[354079872,1740226244922,-500.0,0.00012624,2]
[354079873,1740226244931,-500.0,0.00012624,2]
[354079874,1740226244940,-221.38,0.00012624,2]
[354079875,1740226244949,-519.71,0.00012624,2]
[354079876,1740226244958,-500.0,0.00012624,2]
[354079877,1740226244969,-640.20921852,0.00012624,2]
[354079879,1740226244978,-300.65375678,0.00012624,2]
[354079881,1740226244987,-500.0,0.00012624,2]
[354079883,1740226244996,-619.1393849,0.00012624,2]
[354079885,1740226245006,-436.776,0.00012624,2]
[354079887,1740226245016,-500.0,0.00012624,2]
[354079889,1740226245025,-500.0,0.00012624,2]
[354079891,1740226245034,-500.0,0.00012624,2]
[354079893,1740226245043,-500.0,0.00012706,2]
[354079895,1740226245053,-500.0,0.00012706,2]
[354079897,1740226245063,-500.0,0.00012706,2]
[354079899,1740226245072,-503.79504873,0.00012706,2]
[354079901,1740226245081,-500.0,0.00012706,2]
[354079903,1740226245090,-500.0,0.00012706,2]
[354079905,1740226245100,-500.0,0.00012706,2]
[354079907,1740226245109,-500.0,0.00012706,2]
[354079909,1740226245118,-500.0,0.00012706,2]
[354079911,1740226245127,-500.0,0.00012706,2]
[354079913,1740226245136,-500.0,0.00012706,2]
[354079915,1740226245146,-188.47872879,0.00012706,2]
[354079917,1740226245155,-500.0,0.00012706,2]
[354079919,1740226245164,-500.0,0.00012706,2]
[354079921,1740226245174,-171.52116003,0.00012706,2]
[354079923,1740226245183,-393.25,0.00012706,2]
[354079924,1740226245192,-160.3049357,0.00012739,2]
[354079927,1740226245202,-500.0,0.00012789,2]
[354079929,1740226245212,-500.0,0.00012789,2]
[354079930,1740226245221,-500.0,0.00012789,2]
[354079933,1740226245231,-197.56302229,0.00012789,2]
[354079935,1740226245241,-500.0,0.00012789,2]
[354079937,1740226245250,-4172.599,0.00012799,2]
[354079939,1740226245259,-155.928,0.00012799,2]
[354079941,1740226245269,-2576.15237925,0.00012808,2]
[354079943,1740226245278,-830.61,0.00012849,2]
[354079945,1740226245287,-151.0,0.00012881,2]
[354079947,1740226245296,-151.038542,0.00012881,2]
[354079949,1740226245305,-500.0,0.00012899,2]
[354079951,1740226245314,-500.0,0.00012899,2]
[354079953,1740226245323,-500.0,0.00012899,2]
[354079954,1740226245332,-500.0,0.00012899,2]
[354079957,1740226245343,-500.0,0.00012899,2]
[354079958,1740226245355,-500.0,0.00012899,2]
[354079960,1740226245364,-510.39657993,0.00012899,2]
[354079962,1740226245373,-502.58018907,0.00012899,2]
[354079964,1740226245383,-500.0,0.00012899,2]
[354079966,1740226245392,-500.0,0.00012899,2]
[354079968,1740226245402,-502.96055832,0.00012899,2]
[354079970,1740226245411,-504.17539041,0.00012899,2]
[354079972,1740226245421,-500.0,0.00012899,2]
[354079974,1740226245431,-504.70931612,0.00012899,2]
[354079976,1740226245440,-500.0,0.00012899,2]
[354079978,1740226245449,-500.0,0.00012899,2]
[354079980,1740226245459,-500.0,0.00012899,2]
[354079982,1740226245467,-500.0,0.00012899,2]
[354079984,1740226245476,-500.0,0.00012899,2]
[354079986,1740226245485,-410.42309567,0.00012899,2]
[354079988,1740226245494,-347.73296606,0.00012899,2]
[354079990,1740226245503,-361.90524863,0.00012899,2]
[354079992,1740226245513,-500.0,0.00012899,2]
[354079995,1740226245526,-500.0,0.00012899,2]
[354079996,1740226245535,-500.0,0.00012899,2]
[354079998,1740226245544,-512.99619028,0.00012899,2]
[354080000,1740226245553,-500.0,0.00012899,2]
[354080002,1740226245562,-508.97610657,0.00012899,2]
[354080004,1740226245571,-532.33791813,0.00012899,2]
[354080006,1740226245580,-378.85542533,0.00012899,2]
[354080008,1740226245589,-500.0,0.00012899,2]
[354080010,1740226245599,-500.0,0.00012899,2]
[354080012,1740226245608,-188.17292551,0.00012899,2]
[354080014,1740226245616,-500.0,0.00012899,2]
[354080016,1740226245625,-500.0,0.00012899,2]
[354080018,1740226245635,-500.0,0.00012899,2]
[354080020,1740226245644,-500.0,0.00012899,2]
[354080022,1740226245654,-500.0,0.00012899,2]
[354080024,1740226245663,-512.71562495,0.00012899,2]
[354080026,1740226245672,-500.0,0.00012899,2]
[354080028,1740226245682,-505.71673442,0.00012899,2]
[354080030,1740226245691,-500.0,0.00012899,2]
[354080032,1740226245700,-559.54029981,0.00012899,2]
[354080034,1740226245710,-511.46297169,0.00012899,2]
[354080036,1740226245719,-500.0,0.00012899,2]
[354080038,1740226245728,-504.60491637,0.00012899,2]
[354080040,1740226245737,-500.0,0.00012899,2]
[354080042,1740226245746,-500.0,0.00012899,2]
[354080044,1740226245756,-500.0,0.00012899,2]
[354080046,1740226245765,-500.0,0.00012899,2]
[354080048,1740226245775,-500.0,0.00012899,2]
[354080050,1740226245784,-505.80776128,0.00012899,2]
[354080052,1740226245793,-500.0,0.00012899,2]
[354080054,1740226245802,-500.0,0.00012899,2]
[354080056,1740226245811,-500.0,0.00012899,2]
[354080058,1740226245820,-506.05802211,0.00012899,2]
[354080060,1740226245829,-478.75261013,0.00012899,2]
[354080062,1740226245838,-503.85649398,0.00012899,2]
[354080064,1740226245847,-500.0,0.00012899,2]
[354080066,1740226245856,-500.0,0.00012899,2]
[354080068,1740226245865,-510.00603525,0.00012899,2]
[354080070,1740226245875,-564.82239969,0.00012899,2]
[354080072,1740226245884,-500.0,0.00012899,2]
[354080074,1740226245893,-500.0,0.00012899,2]
[354080076,1740226245903,-364.73730841,0.00012899,2]
[354080078,1740226245912,-500.0,0.00012899,2]
[354080080,1740226245921,-502.74199118,0.00012899,2]
[354080082,1740226245930,-500.0,0.00012899,2]
[354080084,1740226245939,-500.0,0.00012899,2]
[354080086,1740226245949,-500.0,0.00012899,2]
[354080088,1740226245958,-500.0,0.00012899,2]
[354080090,1740226245967,-500.0,0.00012899,2]
[354080092,1740226245977,-500.0,0.00012899,2]
[354080094,1740226245986,-505.15255368,0.00012899,2]
[354080096,1740226245995,-504.4817769,0.00012899,2]
[354080098,1740226246005,-504.16769278,0.00012899,2]
[354080100,1740226246014,-500.0,0.00012899,2]
[354080103,1740226246023,-500.0,0.00012899,2]
[354080105,1740226246032,-500.0,0.00012899,2]
[354080106,1740226246041,-504.68494505,0.00012899,2]
[354080109,1740226246052,-500.0,0.00012899,2]
[354080111,1740226246061,-500.0,0.00012899,2]
[354080113,1740226246071,-500.0,0.00012899,2]
[354080116,1740226246081,-500.0,0.00012899,2]
[354080119,1740226246090,-500.0,0.00012899,2]
[354080121,1740226246101,-500.0,0.00012899,2]
[354080123,1740226246110,-500.0,0.00012899,2]
[354080125,1740226246119,-509.2971738,0.00012899,2]
[354080127,1740226246128,-505.4656804,0.00012899,2]
[354080129,1740226246138,-500.0,0.00012899,2]
[354080131,1740226246147,-502.8652723,0.00012899,2]
[354080133,1740226246156,-500.0,0.00012899,2]
[354080135,1740226246166,-642.94574954,0.00012899,2]
[354080137,1740226246175,-500.0,0.00012899,2]
[354080139,1740226246184,-500.0,0.00012899,2]
[354080141,1740226246194,-500.0,0.00012899,2]
[354080143,1740226246203,-500.0,0.00012899,2]
[354080145,1740226246211,-502.73101532,0.00012899,2]
[354080147,1740226246220,-500.0,0.00012899,2]
[354080149,1740226246229,-500.0,0.00012899,2]
[354080151,1740226246239,-500.0,0.00012899,2]
[354080153,1740226246247,-500.0,0.00012899,2]
[354080155,1740226246256,-428.99632715,0.00012899,2]
[354080157,1740226246265,-500.0,0.00012899,2]
[354080159,1740226246274,-500.0,0.00012899,2]
[354080161,1740226246284,-500.0,0.00012899,2]
[354080163,1740226246293,-500.0,0.00012899,2]
[354080165,1740226246303,-500.0,0.00012899,2]
[354080167,1740226246311,-500.0,0.00012899,2]
[354080169,1740226246321,-500.0,0.00012899,2]
[354080171,1740226246330,-500.0,0.00012899,2]
[354080173,1740226246339,-500.0,0.00012899,2]
[354080175,1740226246353,-500.0,0.00012899,2]
[354080177,1740226246363,-500.0,0.00012899,2]
[354080179,1740226246372,-179.76323443,0.00012899,2]
[354080181,1740226246382,-500.0,0.00012899,2]
[354080183,1740226246392,-500.0,0.00012899,2]
[354080185,1740226246401,-500.0,0.00012899,2]
[354080187,1740226246410,-500.0,0.00012899,2]
[354080189,1740226246420,-500.0,0.00012899,2]
[354080191,1740226246429,-500.0,0.00012899,2]
[354080193,1740226246440,-500.0,0.00012899,2]
[354080195,1740226246450,-500.0,0.00012899,2]
[354080197,1740226246459,-503.63180215,0.00012899,2]
[354080199,1740226246468,-500.0,0.00012899,2]
[354080201,1740226246477,-502.39750926,0.00012899,2]
[354080203,1740226246486,-500.0,0.00012899,2]
[354080205,1740226246495,-504.77152095,0.00012899,2]
[354080207,1740226246504,-500.0,0.00012899,2]
[354080209,1740226246514,-505.94172968,0.00012899,2]
[354080214,1740226246558,-500.0,0.00012899,2]
[354080216,1740226246567,-500.0,0.00012899,2]
[354080218,1740226246577,-500.0,0.00012899,2]
[354080220,1740226246586,-501.34171887,0.00012899,2]
[354080222,1740226246596,-500.0,0.00012899,2]
[354080224,1740226246605,-504.32712868,0.00012899,2]
[354080226,1740226246614,-500.0,0.00012899,2]
[354080228,1740226246623,-500.0,0.00012899,2]
[354080230,1740226246632,-500.0,0.00012899,2]
[354080232,1740226246641,-500.0,0.00012899,2]
[354080234,1740226246651,-500.0,0.00012899,2]
[354080236,1740226246660,-500.0,0.00012899,2]
[354080238,1740226246669,-500.0,0.00012899,2]
[354080240,1740226246679,-500.0,0.00012899,2]
[354080242,1740226246688,-500.0,0.00012899,2]
[354080244,1740226246699,-514.23322089,0.00012899,2]
[354080246,1740226246709,-500.0,0.00012899,2]
[354080248,1740226246718,-500.0,0.00012899,2]
[354080250,1740226246727,-367.20956647,0.00012899,2]
[354080252,1740226246736,-500.0,0.00012899,2]
[354080254,1740226246745,-500.0,0.00012899,2]
[354080256,1740226246754,-502.14485479,0.00012899,2]
[354080258,1740226246764,-500.0,0.00012899,2]
[354080260,1740226246772,-500.0,0.00012899,2]
[354080262,1740226246781,-500.0,0.00012899,2]
[354080264,1740226246790,-500.0,0.00012899,2]
[354080266,1740226246799,-500.0,0.00012899,2]
[354080268,1740226246808,-500.0,0.00012899,2]
[354080270,1740226246817,-500.0,0.00012899,2]
[354080272,1740226246826,-500.0,0.00012899,2]
[354080274,1740226246835,-500.0,0.00012899,2]
[354080276,1740226246844,-198.27,0.00012899,2]
[354080278,1740226246853,-500.0,0.00012899,2]
[354080280,1740226246861,-500.0,0.00012899,2]
[354080282,1740226246870,-500.0,0.00012899,2]
[354080284,1740226246879,-500.0,0.00012899,2]
[354080286,1740226246888,-500.0,0.00012899,2]
[354080288,1740226246897,-500.0,0.00012899,2]
[354080290,1740226246906,-500.0,0.00012899,2]
[354080291,1740226246915,-500.0,0.00012899,2]
[354080292,1740226246923,-500.0,0.00012899,2]
[354080293,1740226246932,-500.0,0.00012899,2]
[354080294,1740226246941,-500.0,0.00012899,2]
[354080295,1740226246950,-500.0,0.00012899,2]
[354080296,1740226246959,-500.0,0.00012899,2]
[354080297,1740226246968,-500.0,0.00012899,2]
[354080298,1740226246976,-500.0,0.00012899,2]
[354080299,1740226246985,-500.0,0.00012899,2]
[354080301,1740226246995,-500.0,0.00012899,2]
[354080303,1740226247004,-500.0,0.00012899,2]
[354080305,1740226247013,-220.19615087,0.00012899,2]
[354080307,1740226247022,-500.0,0.00012899,2]
[354080309,1740226247031,-500.0,0.00012899,2]
[354080311,1740226247040,-500.0,0.00012899,2]
[354080313,1740226247049,-500.0,0.00012899,2]
[354080315,1740226247060,-500.0,0.00012899,2]
[354080317,1740226247068,-500.0,0.00012899,2]
[354080319,1740226247077,-608.91558831,0.00012899,2]
[354080321,1740226247087,-500.0,0.00012899,2]
[354080323,1740226247096,-500.0,0.00012899,2]
[354080325,1740226247105,-500.0,0.00012899,2]
[354080327,1740226247114,-500.0,0.00012899,2]
[354080329,1740226247123,-500.0,0.00012899,2]
[354080331,1740226247133,-500.0,0.00012899,2]
[354080333,1740226247142,-500.0,0.00012899,2]
[354080335,1740226247151,-500.0,0.00012899,2]
[354080337,1740226247163,-500.0,0.00012899,2]
[354080339,1740226247172,-500.0,0.00012899,2]
[354080341,1740226247181,-500.0,0.00012899,2]
[354080343,1740226247190,-500.0,0.00012899,2]
[354080345,1740226247199,-500.0,0.00012899,2]
[354080347,1740226247208,-500.0,0.00012899,2]
[354080349,1740226247217,-500.0,0.00012899,2]
[354080351,1740226247227,-509.22990198,0.00012899,2]
[354080353,1740226247236,-500.0,0.00012899,2]
[354080355,1740226247245,-500.0,0.00012899,2]
[354080357,1740226247254,-500.0,0.00012899,2]
[354080359,1740226247263,-500.0,0.00012899,2]
[354080361,1740226247272,-500.0,0.00012899,2]
[354080363,1740226247282,-500.0,0.00012899,2]
[354080365,1740226247291,-500.0,0.00012899,2]
[354080367,1740226247301,-500.0,0.00012899,2]
[354080369,1740226247310,-500.0,0.00012899,2]
[354080371,1740226247320,-151.0,0.000129,2]
[354080373,1740226247330,-459.9278,0.000129,2]
[354080375,1740226247339,-4865.6269,0.000129,2]
[354080377,1740226247352,-500.0,0.000129,2]
[354080379,1740226247361,-8808.9351,0.000129,2]
[354080381,1740226247370,-1000.0,0.000129,2]
[354080383,1740226247379,-1000.0,0.000129,2]
[354080385,1740226247390,-1000.0,0.000129,2]
[354080387,1740226247399,-1000.0,0.000129,2]
[354080389,1740226247408,-1000.0,0.000129,2]
[354080391,1740226247418,-1000.0,0.000129,2]
[354080393,1740226247428,-1000.0,0.000129,2]
[354080395,1740226247437,-1000.0,0.000129,2]
[354080397,1740226247446,-1000.0,0.000129,2]
[354080399,1740226247455,-1000.0,0.000129,2]
[354080401,1740226247464,-588.22,0.00012981,2]
[354080403,1740226247473,-503.33,0.00012981,2]
[354080405,1740226247482,-336.40763733,0.00012981,2]
[354080406,1740226247491,-527.40016565,0.00012981,2]
[354080408,1740226247500,-500.0,0.00012981,2]
[354080411,1740226247510,-503.30357806,0.00012981,2]
[354080413,1740226247519,-500.0,0.00012981,2]
[354080415,1740226247528,-456.70802722,0.00012981,2]
[354080416,1740226247541,-510.33548369,0.00012981,2]
[354080420,1740226247560,-500.0,0.00012981,2]
[354080422,1740226247571,-500.0,0.00012981,2]
[354080423,1740226247581,-500.0,0.00012981,2]
[354080425,1740226247590,-500.0,0.00012981,2]
[354080427,1740226247599,-409.75532962,0.00012981,2]
[354080429,1740226247609,-463.38884157,0.00012981,2]
[354080431,1740226247618,-502.72546797,0.00012981,2]
[354080434,1740226247627,-500.0,0.00012981,2]
[354080435,1740226247637,-204.29167083,0.00012981,2]
[354080437,1740226247646,-203.87078496,0.00012981,2]
[354080440,1740226247655,-500.0,0.00012981,2]
[354080441,1740226247664,-500.0,0.00012981,2]
[354080443,1740226247674,-500.0,0.00012981,2]
[354080445,1740226247683,-500.0,0.00012981,2]
[354080447,1740226247692,-500.0,0.00012981,2]
[354080449,1740226247702,-185.81017741,0.00012981,2]
[354080451,1740226247711,-500.0,0.00012981,2]
[354080453,1740226247719,-500.0,0.00012981,2]
[354080455,1740226247728,-500.0,0.00012981,2]
[354080457,1740226247737,-500.0,0.00012981,2]
[354080459,1740226247747,-505.06589334,0.00012981,2]
[354080461,1740226247757,-502.58730291,0.00012981,2]
[354080463,1740226247766,-537.94565199,0.00012981,2]
[354080465,1740226247775,-500.0,0.00012981,2]
[354080467,1740226247784,-500.0,0.00012981,2]
[354080469,1740226247793,-500.0,0.00012981,2]
[354080471,1740226247802,-500.0,0.00012981,2]
[354080473,1740226247812,-502.62664186,0.00012981,2]
[354080475,1740226247821,-507.55687402,0.00012981,2]
[354080477,1740226247830,-512.57742497,0.00012981,2]
[354080479,1740226247840,-511.11349447,0.00012981,2]
[354080481,1740226247849,-500.0,0.00012981,2]
[354080483,1740226247858,-505.76887174,0.00012981,2]
[354080485,1740226247872,-503.98032584,0.00012981,2]
[354080487,1740226247887,-500.0,0.00012981,2]
[354080490,1740226247899,-504.12846145,0.00012981,2]
[354080492,1740226247909,-507.38752517,0.00012981,2]
[354080493,1740226247920,-510.65114462,0.00012981,2]
[354080496,1740226247931,-633.36758795,0.00012981,2]
[354080497,1740226247941,-415.29699495,0.00012981,2]
[354080499,1740226247951,-508.94269624,0.00012981,2]
[354080501,1740226247960,-151.98695088,0.00012981,2]
[354080503,1740226247970,-500.0,0.00012981,2]
[354080505,1740226247981,-500.0,0.00012981,2]
[354080507,1740226247991,-500.0,0.00012981,2]
[354080509,1740226248000,-213.74698119,0.00012981,2]
[354080511,1740226248009,-500.0,0.00012981,2]
[354080513,1740226248019,-500.0,0.00012981,2]
[354080515,1740226248028,-500.0,0.00012981,2]
[354080517,1740226248037,-380.15,0.00012986,2]
[354080519,1740226248047,-440.09,0.00012986,2]
[354080521,1740226248057,-628.7000405,0.0001299,2]
[354080523,1740226248067,-261.9583501,0.0001299,2]
[354080525,1740226248076,-740.7015275,0.0001299,2]
[354080527,1740226248085,-500.0,0.00012999,2]
[354080529,1740226248095,-500.0,0.00012999,2]
[354080531,1740226248104,-500.0,0.00012999,2]
[354080533,1740226248113,-500.0,0.00012999,2]
[354080535,1740226248122,-247634.48208499,0.00013,5]
[354080537,1740226248131,-2905.15,0.00013,2]
[354080539,1740226248140,-801.61760808,0.00013,2]
[354080541,1740226248150,-14053.808527,0.00013,2]
[354080543,1740226248159,-151.56941,0.00013,2]
[354080545,1740226248170,-151.0,0.00013,2]
[354080547,1740226248179,-151.0,0.00013,2]
[354080548,1740226248188,-151.0,0.00013,2]
[354080550,1740226248200,-151.0,0.00013,2]
[354080552,1740226248210,-151.0,0.00013,2]
[354080554,1740226248219,-276.704609,0.00013,2]
[354080556,1740226248228,-151.0,0.00013,2]
[354080558,1740226248237,-1000.0,0.00013,5]
[354080560,1740226248246,-170.63064431,0.00013,2]
[354080562,1740226248255,-151.0,0.00013,2]
[354080564,1740226248264,-151.0,0.00013,2]
[354080566,1740226248274,-151.0,0.00013,2]
[354080568,1740226248283,-200.0,0.00013,2]
[354080570,1740226248292,-150.0,0.00013,2]
[354080572,1740226248301,-150.0,0.00013,2]
[354080574,1740226248311,-499.999999,0.00013,2]
[354080576,1740226248321,-289.78146065,0.00013,2]
[354080578,1740226248331,-500.0,0.00013,2]
[354080580,1740226248341,-150.0,0.00013,2]
[354080582,1740226248355,-150.0,0.00013,2]
[354080584,1740226248365,-150.0,0.00013,2]